[Event "Chessity Nationale Pupillendag 2018 - Groep F"]
[Site "Meppel, Netherlands"]
[Date "2018.06.23"]
[Round "6.2"]
[White "Van Gaal, Hugo"]
[Black "Jakhari, Ansh"]
[Result "0-1"]
[TimeControl "15 min + 10 sec"]
[WhiteElo "851"]
[BlackElo "1293"]

1. e4 {[%clk 00:15:20]} {[%emt 00:01:01]} c5 {[%clk 00:15:20]} 2. Nc3 {[%clk
00:15:07]} {[%emt 00:00:22]} Nc6 {[%clk 00:15:29]} 3. Nf3 {[%clk 00:15:13]}
{[%emt 00:00:04]} e6 {[%clk 00:15:39]} 4. Bc4 {[%clk 00:14:54]} {[%emt
00:00:29]} a6 {[%clk 00:15:48]} {[%emt 00:00:02]} 5. d3 {[%clk 00:15:02]}
{[%emt 00:00:02]} b5 {[%clk 00:15:53]} {[%emt 00:00:05]} 6. Bg5 {[%clk
00:15:08]} {[%emt 00:00:03]} Be7 {[%clk 00:16:00]} {[%emt 00:00:03]} 7. Bxe7
{[%clk 00:14:55]} {[%emt 00:00:23]} Ngxe7 {[%clk 00:16:08]} {[%emt 00:00:03]} 8.
Bd5 {[%clk 00:14:34]} {[%emt 00:00:30]} exd5 {[%clk 00:16:10]} {[%emt
00:00:09]} 9. exd5 {[%clk 00:14:40]} {[%emt 00:00:03]} Nb4 {[%clk 00:16:19]} 10.
d6 {[%clk 00:14:43]} {[%emt 00:00:07]} Ng6 {[%clk 00:15:57]} {[%emt 00:00:32]}
11. Qe2+ {[%clk 00:14:48]} {[%emt 00:00:05]} Kf8 {[%clk 00:16:05]} {[%emt
00:00:02]} 12. O-O-O {[%emt 00:00:55]} Bb7 {[%clk 00:16:07]} {[%emt 00:00:03]}
13. h4 {[%clk 00:12:43]} {[%emt 00:01:34]} Nf4 {[%clk 00:15:48]} {[%emt
00:00:31]} 14. Qe3 {[%clk 00:12:38]} {[%emt 00:00:09]} Nxg2 {[%clk 00:15:50]}
{[%emt 00:00:13]} 15. Qg5 {[%emt 00:00:15]} Bxf3 {[%emt 00:00:08]} 16. Qxd8+
{[%clk 00:12:03]} {[%emt 00:00:22]} Rxd8 {[%clk 00:15:59]} {[%emt 00:00:02]} 17.
Rdg1 {[%clk 00:12:04]} {[%emt 00:00:06]} Nf4 {[%clk 00:16:01]} {[%emt
00:00:10]} 18. Rg3 {[%clk 00:11:42]} {[%emt 00:00:31]} Bxh1 {[%clk 00:16:08]}
{[%emt 00:00:04]} 19. Rg4 {[%clk 00:11:07]} {[%emt 00:00:43]} Nfd5 {[%clk
00:16:12]} {[%emt 00:00:08]} 20. Nxd5 {[%clk 00:10:59]} {[%emt 00:00:17]} Bxd5
{[%clk 00:16:20]} {[%emt 00:00:02]} 21. a3 {[%clk 00:10:42]} {[%emt 00:00:29]}
Nc6 {[%clk 00:16:25]} {[%emt 00:00:05]} 22. b4 {[%clk 00:10:39]} {[%emt
00:00:12]} Be6 {[%clk 00:16:26]} {[%emt 00:00:08]} 23. Re4 {[%emt 00:00:11]}
cxb4 {[%emt 00:00:11]} 24. axb4 {[%clk 00:10:24]} {[%emt 00:00:03]} Bd5 {[%clk
00:16:35]} {[%emt 00:00:02]} 25. Rg4 {[%clk 00:10:21]} {[%emt 00:00:11]} h5
{[%clk 00:16:40]} {[%emt 00:00:06]} 26. Rf4 {[%clk 00:10:29]} {[%emt 00:00:02]}
Re8 {[%clk 00:16:35]} {[%emt 00:00:15]} 27. d4 {[%clk 00:10:00]} {[%emt
00:00:39]} Re4 {[%clk 00:16:44]} 28. Rxe4 {[%clk 00:10:06]} {[%emt 00:00:04]}
Bxe4 {[%clk 00:16:53]} 29. d5 {[%clk 00:10:12]} {[%emt 00:00:04]} Nxb4 {[%clk
00:17:02]} {[%emt 00:00:02]} 30. f4 {[%clk 00:10:15]} {[%emt 00:00:06]} Bxd5
{[%clk 00:17:07]} {[%emt 00:00:05]} 31. c3 {[%clk 00:10:22]} {[%emt 00:00:03]}
Nd3+ {[%clk 00:17:17]} {[%emt 00:00:01]} 32. Kd2 {[%clk 00:10:30]} {[%emt
00:00:02]} Nxf4 {[%clk 00:17:26]} {[%emt 00:00:01]} 33. c4 {[%emt 00:00:04]}
Bxc4 34. Ke3 {[%clk 00:10:31]} {[%emt 00:00:04]} Nd5+ {[%clk 00:17:34]} {[%emt
00:00:02]} 35. Ke4 {[%clk 00:10:38]} {[%emt 00:00:01]} g6 {[%clk 00:17:43]} 36.
Ke5 {[%clk 00:10:44]} {[%emt 00:00:06]} Kg7 {[%clk 00:17:51]} {[%emt 00:00:03]}
37. Ke4 {[%clk 00:10:48]} {[%emt 00:00:05]} Re8+ {[%clk 00:18:00]} 38. Kf3
{[%clk 00:10:55]} {[%emt 00:00:04]} Re3+ {[%clk 00:18:09]} {[%emt 00:00:01]} 39.
Kf2 {[%clk 00:11:03]} {[%emt 00:00:03]} b4 {[%clk 00:18:16]} {[%emt 00:00:04]}
40. Kg2 {[%clk 00:11:08]} {[%emt 00:00:04]} Nf4+ {[%clk 00:18:14]} {[%emt
00:00:11]} 41. Kh2 {[%clk 00:11:06]} {[%emt 00:00:11]} Rh3 {[%clk 00:18:21]}
{[%emt 00:00:03]} 42. Kg1 {[%clk 00:11:11]} {[%emt 00:00:05]} Rxh4 {[%clk
00:18:23]} {[%emt 00:00:10]} 43. Kf2 {[%clk 00:11:15]} {[%emt 00:00:05]} b3
{[%clk 00:18:30]} {[%emt 00:00:04]} 44. Ke1 {[%clk 00:11:19]} {[%emt 00:00:06]}
b2 {[%clk 00:18:39]} 45. Kd2 {[%clk 00:11:24]} {[%emt 00:00:05]} b1=Q {[%clk
00:18:43]} {[%emt 00:00:06]} 46. Ke3 {[%emt 00:00:06]} Qd3+ {[%emt 00:00:14]}
47. Kf2 {[%clk 00:11:11]} {[%emt 00:00:03]} Qe2+ {[%clk 00:18:52]} {[%emt
00:00:01]} 48. Kg3 {[%clk 00:11:18]} {[%emt 00:00:03]} Rg4+ {[%clk 00:19:00]}
{[%emt 00:00:02]} 0-1

[Event "Chessity Nationale Pupillendag 2018 - Groep F"]
[Site "Meppel, Netherlands"]
[Date "2018.06.23"]
[Round "6.3"]
[White "Madularea, David"]
[Black "Boonen, Arvo"]
[Result "1-0"]
[TimeControl "15 min + 10 sec"]
[WhiteElo "961"]
[BlackElo "657"]

1. Nf3 {[%clk 00:15:19]} Nc6 {[%clk 00:15:19]} {[%emt 00:00:02]} 2. d4 {[%clk
00:15:28]} {[%emt 00:00:01]} d5 {[%clk 00:15:26]} {[%emt 00:00:03]} 3. c4
{[%clk 00:15:36]} e6 {[%clk 00:15:35]} {[%emt 00:00:02]} 4. Nc3 {[%clk
00:15:44]} {[%emt 00:00:02]} Nf6 {[%clk 00:15:42]} {[%emt 00:00:02]} 5. Bf4
{[%clk 00:15:49]} {[%emt 00:00:05]} Bd6 {[%clk 00:15:40]} {[%emt 00:00:13]} 6.
Bg3 {[%clk 00:15:58]} {[%emt 00:00:01]} O-O {[%clk 00:15:36]} {[%emt 00:00:14]}
7. c5 {[%clk 00:15:59]} {[%emt 00:00:08]} Bxg3 {[%clk 00:15:39]} {[%emt
00:00:07]} 8. hxg3 {[%clk 00:16:07]} {[%emt 00:00:03]} Ne4 {[%clk 00:15:31]}
{[%emt 00:00:18]} 9. Qc2 {[%clk 00:16:11]} {[%emt 00:00:06]} f5 {[%clk
00:15:36]} {[%emt 00:00:05]} 10. Nxe4 {[%clk 00:16:11]} {[%emt 00:00:10]} dxe4
{[%clk 00:15:41]} {[%emt 00:00:05]} 11. Nd2 {[%clk 00:15:47]} {[%emt 00:00:35]}
Nxd4 {[%clk 00:15:48]} {[%emt 00:00:03]} 12. Qc3 {[%clk 00:15:52]} {[%emt
00:00:04]} Qf6 {[%clk 00:15:43]} {[%emt 00:00:15]} 13. e3 {[%clk 00:15:56]}
{[%emt 00:00:06]} Nc6 {[%clk 00:15:50]} {[%emt 00:00:04]} 14. Qxf6 {[%clk
00:16:03]} {[%emt 00:00:03]} Rxf6 {[%emt 00:00:06]} 15. O-O-O {[%clk 00:15:55]}
{[%emt 00:00:14]} b5 {[%clk 00:15:37]} {[%emt 00:00:31]} 16. Nb3 {[%clk
00:15:54]} {[%emt 00:00:10]} a6 {[%clk 00:15:36]} {[%emt 00:00:12]} 17. Kb1
{[%clk 00:15:55]} {[%emt 00:00:07]} Bb7 {[%clk 00:15:32]} {[%emt 00:00:16]} 18.
f3 {[%clk 00:15:43]} {[%emt 00:00:21]} exf3 {[%clk 00:15:30]} {[%emt 00:00:12]}
19. gxf3 {[%clk 00:15:50]} {[%emt 00:00:03]} Rff8 {[%clk 00:15:38]} {[%emt
00:00:02]} 20. f4 {[%clk 00:15:37]} {[%emt 00:00:23]} Rad8 {[%clk 00:15:43]}
{[%emt 00:00:05]} 21. Bg2 {[%clk 00:15:46]} {[%emt 00:00:01]} Rxd1+ {[%clk
00:15:12]} {[%emt 00:00:42]} 22. Rxd1 {[%clk 00:15:54]} {[%emt 00:00:02]} Rd8
{[%clk 00:15:20]} {[%emt 00:00:01]} 23. Rxd8+ {[%clk 00:16:01]} {[%emt
00:00:03]} Nxd8 {[%clk 00:15:29]} {[%emt 00:00:02]} 24. Bxb7 {[%clk 00:16:02]}
{[%emt 00:00:09]} Nxb7 {[%emt 00:00:04]} 25. Kc2 {[%clk 00:16:06]} {[%emt
00:00:02]} Kf7 {[%clk 00:15:34]} {[%emt 00:00:15]} 26. Kd3 {[%clk 00:16:11]}
{[%emt 00:00:04]} Ke7 {[%clk 00:15:42]} {[%emt 00:00:02]} 27. Kd4 {[%clk
00:16:15]} {[%emt 00:00:05]} Kf6 {[%clk 00:15:34]} {[%emt 00:00:19]} 28. c6
{[%clk 00:16:13]} {[%emt 00:00:12]} Nd6 {[%clk 00:15:43]} {[%emt 00:00:02]} 29.
Nc5 {[%clk 00:16:19]} {[%emt 00:00:04]} a5 {[%clk 00:15:38]} {[%emt 00:00:15]}
30. Na6 {[%clk 00:15:50]} {[%emt 00:00:39]} g5 {[%clk 00:15:31]} {[%emt
00:00:18]} 31. Nxc7 {[%clk 00:15:43]} {[%emt 00:00:16]} b4 {[%clk 00:15:31]}
{[%emt 00:00:10]} 32. b3 {[%clk 00:15:27]} {[%emt 00:00:26]} Ne4 {[%clk
00:15:35]} {[%emt 00:00:06]} 33. Ne8+ {[%clk 00:15:16]} {[%emt 00:00:22]} Ke7
{[%clk 00:15:32]} {[%emt 00:00:13]} 34. c7 {[%clk 00:15:23]} {[%emt 00:00:03]}
Kd7 {[%clk 00:15:32]} {[%emt 00:00:10]} 35. fxg5 {[%clk 00:15:22]} {[%emt
00:00:11]} Nxg5 {[%clk 00:15:37]} {[%emt 00:00:05]} 36. Ke5 {[%clk 00:15:24]}
{[%emt 00:00:07]} Nf7+ {[%clk 00:15:30]} {[%emt 00:00:16]} 37. Kf6 {[%clk
00:15:28]} {[%emt 00:00:05]} Nh6 {[%clk 00:15:19]} {[%emt 00:00:24]} 38. Kg5
{[%clk 00:15:19]} {[%emt 00:00:17]} Nf7+ {[%clk 00:15:21]} {[%emt 00:00:09]} 39.
Kf6 {[%clk 00:15:27]} {[%emt 00:00:02]} Nh6 {[%clk 00:15:30]} {[%emt 00:00:02]}
40. Ke5 {[%clk 00:15:29]} {[%emt 00:00:03]} Ng4+ {[%clk 00:15:34]} {[%emt
00:00:10]} 41. Kf4 {[%clk 00:15:30]} {[%emt 00:00:06]} Nh6 {[%clk 00:15:26]}
{[%emt 00:00:20]} 42. Nd6 {[%clk 00:15:35]} {[%emt 00:00:06]} Kxc7 {[%clk
00:15:24]} {[%emt 00:00:11]} 43. Ke5 {[%clk 00:15:43]} {[%emt 00:00:03]} Ng4+
{[%clk 00:15:27]} {[%emt 00:00:07]} 44. Kxe6 {[%clk 00:15:46]} {[%emt
00:00:07]} Nxe3 {[%clk 00:15:35]} {[%emt 00:00:02]} 45. Nxf5 {[%clk 00:15:55]}
{[%emt 00:00:02]} Nxf5 {[%clk 00:15:40]} {[%emt 00:00:04]} 46. Kxf5 {[%clk
00:16:03]} {[%emt 00:00:02]} Kd7 {[%clk 00:15:49]} {[%emt 00:00:01]} 47. g4
{[%clk 00:16:12]} {[%emt 00:00:01]} Ke7 {[%clk 00:15:58]} {[%emt 00:00:02]} 48.
g5 {[%clk 00:16:21]} Kf7 {[%clk 00:16:08]} {[%emt 00:00:01]} 49. Kg4 {[%clk
00:16:23]} {[%emt 00:00:06]} Kg6 {[%clk 00:16:16]} {[%emt 00:00:03]} 50. Kf4
{[%clk 00:16:31]} {[%emt 00:00:01]} Kf7 {[%clk 00:16:23]} {[%emt 00:00:04]} 51.
Kf5 {[%clk 00:16:40]} {[%emt 00:00:02]} Kg7 {[%clk 00:16:32]} 52. Kf4 {[%clk
00:16:45]} {[%emt 00:00:04]} Kg6 {[%clk 00:16:41]} {[%emt 00:00:03]} 53. Kg4
{[%clk 00:16:53]} Kg7 {[%clk 00:16:45]} {[%emt 00:00:07]} 54. Kh5 {[%clk
00:17:02]} {[%emt 00:00:01]} Kf7 {[%clk 00:16:50]} {[%emt 00:00:04]} 55. Kh6
{[%clk 00:17:09]} {[%emt 00:00:04]} Ke6 {[%clk 00:17:00]} 56. Kxh7 {[%clk
00:17:17]} {[%emt 00:00:01]} Kf5 {[%clk 00:17:09]} {[%emt 00:00:01]} 57. g6
{[%clk 00:17:26]} {[%emt 00:00:02]} Ke4 {[%clk 00:17:16]} {[%emt 00:00:03]} 58.
g7 {[%clk 00:17:34]} {[%emt 00:00:02]} Kd3 {[%clk 00:17:25]} {[%emt 00:00:01]}
59. g8=Q {[%clk 00:17:39]} {[%emt 00:00:03]} Kc2 {[%clk 00:17:34]} {[%emt
00:00:02]} 60. Qc4+ {[%clk 00:17:46]} {[%emt 00:00:02]} Kb2 {[%clk 00:17:43]}
{[%emt 00:00:02]} 61. Qe2+ {[%clk 00:17:55]} Ka3 {[%clk 00:17:51]} {[%emt
00:00:02]} 62. Kg6 {[%clk 00:18:00]} {[%emt 00:00:04]} a4 {[%clk 00:17:59]}
{[%emt 00:00:04]} 63. bxa4 {[%clk 00:18:08]} {[%emt 00:00:02]} Kxa4 {[%clk
00:18:07]} 64. Qa6# {[%clk 00:18:16]} {[%emt 00:00:02]} 1-0

[Event "Chessity Nationale Pupillendag 2018 - Groep F"]
[Site "Meppel, Netherlands"]
[Date "2018.06.23"]
[Round "6.4"]
[White "Jonkman, Sophia"]
[Black "Paulzen, Yuko"]
[Result "0-1"]
[TimeControl "15 min + 10 sec"]
[WhiteElo "538"]
[BlackElo "931"]

1. d4 {[%emt 00:00:02]} d5 {[%clk 00:15:16]} {[%emt 00:00:02]} 2. c4 {[%clk
00:15:28]} {[%emt 00:00:02]} Nf6 {[%clk 00:15:21]} {[%emt 00:00:05]} 3. Nc3
{[%clk 00:15:34]} {[%emt 00:00:05]} Be6 {[%clk 00:15:17]} {[%emt 00:00:14]} 4.
cxd5 {[%clk 00:15:07]} {[%emt 00:00:37]} Nxd5 {[%clk 00:15:14]} {[%emt
00:00:13]} 5. Nxd5 {[%clk 00:15:10]} {[%emt 00:00:07]} Bxd5 {[%clk 00:15:20]}
{[%emt 00:00:05]} 6. Nf3 {[%clk 00:14:11]} {[%emt 00:01:09]} Bxf3 {[%clk
00:15:25]} {[%emt 00:00:05]} 7. exf3 {[%clk 00:14:18]} {[%emt 00:00:02]} e6
{[%clk 00:15:30]} {[%emt 00:00:06]} 8. Bd3 {[%clk 00:13:58]} {[%emt 00:00:30]}
Nc6 {[%clk 00:15:32]} {[%emt 00:00:08]} 9. Bb5 {[%clk 00:13:41]} {[%emt
00:00:28]} Qd6 {[%clk 00:15:28]} {[%emt 00:00:13]} 10. Bxc6+ {[%clk 00:13:43]}
{[%emt 00:00:09]} Qxc6 {[%clk 00:15:34]} {[%emt 00:00:04]} 11. O-O {[%clk
00:13:41]} {[%emt 00:00:12]} g6 {[%clk 00:15:36]} {[%emt 00:00:07]} 12. Be3
{[%clk 00:12:59]} {[%emt 00:00:52]} Bg7 {[%clk 00:15:35]} {[%emt 00:00:11]} 13.
Rc1 {[%clk 00:12:42]} {[%emt 00:00:27]} Qd7 {[%clk 00:15:27]} {[%emt 00:00:17]}
14. Qd2 {[%clk 00:12:23]} {[%emt 00:00:30]} c6 {[%clk 00:14:32]} {[%emt
00:01:06]} 15. Rfd1 {[%clk 00:11:03]} {[%emt 00:01:29]} h6 {[%clk 00:14:11]}
{[%emt 00:00:31]} 16. Bf4 {[%clk 00:09:42]} {[%emt 00:01:31]} O-O {[%clk
00:14:02]} {[%emt 00:00:18]} 17. Bxh6 {[%clk 00:09:11]} {[%emt 00:00:41]} Qe7
{[%clk 00:13:48]} {[%emt 00:00:24]} 18. Bg5 {[%clk 00:08:55]} {[%emt 00:00:27]}
Bf6 {[%clk 00:13:40]} {[%emt 00:00:18]} 19. Bxf6 {[%clk 00:08:51]} {[%emt
00:00:14]} Qxf6 {[%clk 00:13:47]} {[%emt 00:00:03]} 20. g4 {[%clk 00:08:09]}
{[%emt 00:00:52]} Qxf3 {[%clk 00:13:43]} {[%emt 00:00:13]} 21. g5 {[%clk
00:06:59]} {[%emt 00:01:20]} Qg4+ {[%clk 00:13:38]} {[%emt 00:00:14]} 22. Kf1
{[%clk 00:07:05]} {[%emt 00:00:05]} Kg7 {[%clk 00:13:28]} {[%emt 00:00:20]} 23.
Qe3 {[%clk 00:06:08]} {[%emt 00:01:07]} Rh8 {[%clk 00:12:59]} {[%emt 00:00:38]}
24. Qe5+ {[%clk 00:05:53]} {[%emt 00:00:27]} Kg8 {[%clk 00:12:50]} {[%emt
00:00:13]} 25. Rd2 {[%clk 00:05:09]} {[%emt 00:01:00]} Qh3+ {[%clk 00:12:17]}
{[%emt 00:00:43]} 26. Kg1 {[%clk 00:04:46]} {[%emt 00:00:32]} Qf5 {[%clk
00:12:00]} {[%emt 00:00:26]} 27. Qxf5 {[%clk 00:04:18]} {[%emt 00:00:39]} exf5
{[%clk 00:12:01]} {[%emt 00:00:09]} 28. Kg2 {[%clk 00:04:05]} {[%emt 00:00:23]}
Rh4 {[%clk 00:12:04]} {[%emt 00:00:06]} 29. Kg3 {[%clk 00:04:09]} {[%emt
00:00:08]} Rg4+ {[%clk 00:12:10]} {[%emt 00:00:04]} 30. Kf3 {[%clk 00:04:08]}
{[%emt 00:00:12]} Rxg5 {[%clk 00:12:16]} {[%emt 00:00:04]} 31. h4 {[%clk
00:04:04]} {[%emt 00:00:14]} Rg4 {[%clk 00:12:16]} {[%emt 00:00:09]} 32. Rh1
{[%clk 00:03:14]} {[%emt 00:01:01]} Re8 {[%clk 00:12:14]} {[%emt 00:00:11]} 33.
Re2 {[%clk 00:02:53]} {[%emt 00:00:33]} Rxe2 {[%clk 00:12:10]} {[%emt
00:00:14]} 34. Kxe2 {[%clk 00:02:57]} {[%emt 00:00:05]} Rxd4 {[%clk 00:12:19]}
{[%emt 00:00:02]} 35. h5 {[%clk 00:03:01]} {[%emt 00:00:06]} Rc4 {[%clk
00:12:03]} {[%emt 00:00:25]} 36. h6 {[%clk 00:02:52]} {[%emt 00:00:19]} Kh7
{[%clk 00:12:01]} {[%emt 00:00:12]} 37. b3 {[%clk 00:02:34]} {[%emt 00:00:28]}
Rc2+ {[%clk 00:12:08]} {[%emt 00:00:02]} 38. Kf3 {[%clk 00:02:43]} {[%emt
00:00:01]} Rxa2 {[%clk 00:12:15]} {[%emt 00:00:03]} 39. Kg3 {[%clk 00:02:52]}
{[%emt 00:00:02]} Ra3 {[%clk 00:12:17]} {[%emt 00:00:08]} 40. Kf4 {[%clk
00:02:09]} {[%emt 00:00:53]} f6 {[%clk 00:12:08]} {[%emt 00:00:19]} 41. Ke3
{[%clk 00:01:37]} {[%emt 00:00:42]} Rxb3+ {[%clk 00:12:16]} {[%emt 00:00:02]}
42. Kd4 {[%clk 00:01:46]} a5 {[%clk 00:12:21]} {[%emt 00:00:05]} 43. Kc5 {[%clk
00:01:46]} {[%emt 00:00:11]} a4 {[%clk 00:12:26]} {[%emt 00:00:05]} 44. Kd6
{[%clk 00:01:22]} {[%emt 00:00:33]} a3 {[%clk 00:12:31]} {[%emt 00:00:06]} 45.
Ke7 {[%clk 00:01:29]} {[%emt 00:00:03]} a2 {[%clk 00:12:35]} {[%emt 00:00:05]}
46. Kf7 {[%clk 00:01:23]} {[%emt 00:00:16]} Rb1 {[%clk 00:12:37]} {[%emt
00:00:08]} 47. Rh2 {[%clk 00:01:10]} {[%emt 00:00:23]} a1=Q {[%clk 00:12:38]}
{[%emt 00:00:10]} 48. Rg2 {[%clk 00:01:04]} {[%emt 00:00:16]} Qa2+ {[%clk
00:12:27]} {[%emt 00:00:21]} 49. Kf8 {[%clk 00:01:09]} {[%emt 00:00:05]} Qa3+
{[%clk 00:12:31]} {[%emt 00:00:06]} 50. Kf7 {[%clk 00:01:17]} {[%emt 00:00:01]}
Qb3+ {[%clk 00:12:32]} {[%emt 00:00:09]} 51. Kxf6 {[%clk 00:01:12]} {[%emt
00:00:15]} Re1 {[%clk 00:12:23]} {[%emt 00:00:19]} 52. Rxg6 {[%clk 00:00:59]}
{[%emt 00:00:23]} Qe6+ {[%emt 00:00:47]} 53. Kg5 {[%clk 00:00:45]} {[%emt
00:00:14]} Qxg6+ {[%emt 00:00:05]} 54. Kf4 {[%clk 00:00:46]} {[%emt 00:00:08]}
Qxh6+ {[%clk 00:12:42]} {[%emt 00:00:04]} 55. Kxf5 {[%clk 00:00:53]} {[%emt
00:00:04]} Qf8+ {[%clk 00:12:47]} {[%emt 00:00:05]} 56. Kg4 {[%clk 00:00:57]}
{[%emt 00:00:05]} Rg1+ {[%clk 00:12:55]} {[%emt 00:00:02]} 57. Kh4 {[%clk
00:01:02]} {[%emt 00:00:05]} Qh6 {[%clk 00:13:04]} {[%emt 00:00:01]} 0-1

[Event "Chessity Nationale Pupillendag 2018 - Groep F"]
[Site "Meppel, Netherlands"]
[Date "2018.06.23"]
[Round "6.5"]
[White "Wortman, Rawi"]
[Black "De Vreugt Pezo, Max"]
[Result "0-1"]
[TimeControl "15 min + 10 sec"]
[WhiteElo "655"]
[BlackElo "922"]

1. e4 {[%clk 00:15:19]} e5 {[%clk 00:15:19]} {[%emt 00:00:01]} 2. Nf3 {[%clk
00:15:27]} {[%emt 00:00:02]} Nc6 {[%clk 00:15:27]} {[%emt 00:00:02]} 3. Bc4
{[%clk 00:15:35]} Bb4 {[%clk 00:15:35]} {[%emt 00:00:04]} 4. c3 {[%emt
00:00:04]} Bc5 {[%clk 00:15:44]} 5. d4 {[%clk 00:15:50]} {[%emt 00:00:02]} exd4
{[%clk 00:15:52]} {[%emt 00:00:02]} 6. cxd4 {[%clk 00:15:57]} {[%emt 00:00:02]}
Be7 {[%clk 00:15:59]} {[%emt 00:00:03]} 7. Nc3 {[%emt 00:00:11]} d6 {[%clk
00:16:05]} {[%emt 00:00:01]} 8. Bf4 {[%clk 00:16:01]} {[%emt 00:00:08]} Bg4
{[%emt 00:00:19]} 9. h3 {[%clk 00:15:54]} {[%emt 00:00:03]} Bh5 {[%clk
00:16:18]} {[%emt 00:00:02]} 10. O-O {[%clk 00:15:40]} {[%emt 00:00:25]} Nf6
{[%clk 00:16:26]} 11. Re1 {[%clk 00:15:36]} {[%emt 00:00:13]} O-O {[%clk
00:16:32]} {[%emt 00:00:04]} 12. Qd3 {[%clk 00:15:23]} {[%emt 00:00:23]} Nb4
{[%clk 00:16:25]} {[%emt 00:00:17]} 13. Qd2 {[%clk 00:15:22]} {[%emt 00:00:10]}
Bxf3 {[%clk 00:16:30]} {[%emt 00:00:05]} 14. gxf3 {[%clk 00:15:25]} {[%emt
00:00:08]} Nh5 {[%clk 00:16:33]} {[%emt 00:00:08]} 15. a3 {[%clk 00:15:12]}
{[%emt 00:00:23]} Nxf4 {[%clk 00:16:38]} {[%emt 00:00:04]} 16. Qxf4 {[%clk
00:15:18]} {[%emt 00:00:04]} Nc2 {[%clk 00:16:45]} {[%emt 00:00:03]} 17. Rac1
{[%clk 00:14:28]} {[%emt 00:01:01]} Nxe1 {[%clk 00:16:51]} {[%emt 00:00:03]} 18.
Rxe1 {[%clk 00:14:35]} {[%emt 00:00:03]} c6 {[%clk 00:16:49]} {[%emt 00:00:12]}
19. Kh1 {[%clk 00:14:21]} {[%emt 00:00:24]} b5 {[%clk 00:16:53]} {[%emt
00:00:06]} 20. Ba2 {[%clk 00:14:25]} {[%emt 00:00:06]} Bg5 {[%clk 00:16:48]}
{[%emt 00:00:16]} 21. Qg4 {[%clk 00:14:15]} {[%emt 00:00:19]} h6 {[%clk
00:16:47]} {[%emt 00:00:11]} 22. Rg1 {[%clk 00:14:14]} {[%emt 00:00:10]} Qf6
{[%clk 00:16:47]} {[%emt 00:00:11]} 23. d5 {[%clk 00:12:44]} {[%emt 00:01:41]}
c5 {[%clk 00:16:45]} {[%emt 00:00:12]} 24. Nxb5 {[%clk 00:12:44]} {[%emt
00:00:09]} Qxb2 {[%clk 00:16:43]} {[%emt 00:00:13]} 25. h4 {[%clk 00:12:12]}
{[%emt 00:00:42]} Bf6 {[%clk 00:16:36]} {[%emt 00:00:16]} 26. Bc4 {[%clk
00:11:53]} {[%emt 00:00:29]} Rab8 {[%clk 00:16:30]} {[%emt 00:00:15]} 27. Nxd6
{[%clk 00:11:35]} {[%emt 00:00:30]} Qxf2 {[%clk 00:15:56]} {[%emt 00:00:42]} 28.
Rg2 {[%clk 00:10:07]} {[%emt 00:01:39]} Qxh4 {[%clk 00:16:01]} {[%emt
00:00:05]} 29. Qxh4 {[%clk 00:10:11]} {[%emt 00:00:07]} Bxh4 {[%clk 00:16:08]}
{[%emt 00:00:02]} 30. Nf5 {[%clk 00:09:55]} {[%emt 00:00:25]} Bg5 {[%clk
00:16:16]} {[%emt 00:00:04]} 31. f4 {[%clk 00:09:45]} {[%emt 00:00:19]} Rb1
{[%clk 00:16:17]} {[%emt 00:00:09]} 32. Kh2 {[%clk 00:09:25]} {[%emt 00:00:29]}
Bxf4 {[%clk 00:16:24]} {[%emt 00:00:04]} 33. Kh3 {[%clk 00:09:29]} {[%emt
00:00:05]} Bg5 {[%clk 00:16:25]} {[%emt 00:00:10]} 34. Bd3 {[%clk 00:08:52]}
{[%emt 00:00:46]} Rb3 {[%clk 00:16:30]} {[%emt 00:00:06]} 35. Rg3 {[%clk
00:08:54]} {[%emt 00:00:07]} Rxa3 {[%clk 00:16:31]} {[%emt 00:00:10]} 36. e5
{[%clk 00:08:51]} {[%emt 00:00:14]} Re8 {[%clk 00:16:35]} {[%emt 00:00:06]} 37.
Nxh6+ {[%clk 00:07:45]} {[%emt 00:01:15]} gxh6 {[%clk 00:16:32]} {[%emt
00:00:13]} 38. Bh7+ {[%clk 00:07:51]} {[%emt 00:00:04]} Kxh7 {[%clk 00:16:37]}
{[%emt 00:00:05]} 39. Rxa3 {[%clk 00:07:57]} {[%emt 00:00:04]} Rxe5 {[%clk
00:16:44]} {[%emt 00:00:04]} 40. d6 {[%clk 00:07:58]} {[%emt 00:00:08]} Rd5
{[%clk 00:16:51]} {[%emt 00:00:02]} 41. Ra6 {[%clk 00:08:05]} {[%emt 00:00:04]}
c4 {[%clk 00:17:00]} {[%emt 00:00:02]} 42. Rxa7 {[%clk 00:07:59]} {[%emt
00:00:15]} Rxd6 {[%clk 00:17:07]} {[%emt 00:00:03]} 43. Rc7 {[%clk 00:08:06]}
{[%emt 00:00:01]} Rd3 {[%clk 00:17:11]} {[%emt 00:00:08]} 44. Kg2 {[%clk
00:08:12]} {[%emt 00:00:02]} c3 {[%clk 00:17:19]} {[%emt 00:00:04]} 45. Kf2
{[%clk 00:08:18]} {[%emt 00:00:03]} Rd2+ {[%clk 00:17:27]} {[%emt 00:00:03]} 46.
Ke1 {[%clk 00:08:22]} {[%emt 00:00:05]} c2 {[%clk 00:17:35]} {[%emt 00:00:03]}
47. Rxf7 {[%clk 00:07:22]} {[%emt 00:01:10]} Kg6 {[%clk 00:17:44]} 48. Rc7
{[%clk 00:07:28]} {[%emt 00:00:04]} Rd1+ {[%clk 00:17:52]} {[%emt 00:00:02]} 49.
Ke2 {[%clk 00:07:36]} {[%emt 00:00:01]} c1=Q {[%clk 00:17:59]} {[%emt
00:00:04]} 50. Rxc1 {[%clk 00:07:41]} {[%emt 00:00:05]} Rxc1 {[%clk 00:18:07]}
{[%emt 00:00:02]} 51. Kf3 {[%clk 00:07:42]} {[%emt 00:00:08]} Re1 {[%clk
00:18:15]} {[%emt 00:00:02]} 52. Kf2 {[%clk 00:07:50]} {[%emt 00:00:01]} Re8
{[%clk 00:18:23]} {[%emt 00:00:03]} 53. Kf3 {[%clk 00:07:56]} {[%emt 00:00:03]}
Kf5 {[%clk 00:18:31]} {[%emt 00:00:02]} 54. Kg3 {[%clk 00:08:02]} {[%emt
00:00:05]} Ke4 {[%clk 00:18:38]} {[%emt 00:00:03]} 55. Kg4 {[%clk 00:08:08]}
{[%emt 00:00:05]} Rg8 {[%clk 00:18:44]} {[%emt 00:00:04]} 56. Kh5 {[%clk
00:08:15]} {[%emt 00:00:03]} Bd8 {[%clk 00:18:47]} {[%emt 00:00:07]} 57. Kxh6
{[%clk 00:08:20]} {[%emt 00:00:06]} Kf5 {[%clk 00:18:55]} {[%emt 00:00:02]} 58.
Kh7 {[%clk 00:08:28]} {[%emt 00:00:02]} Rg4 {[%clk 00:19:03]} {[%emt 00:00:02]}
59. Kh6 {[%clk 00:08:33]} {[%emt 00:00:05]} Rg2 {[%clk 00:19:10]} {[%emt
00:00:03]} 60. Kh7 {[%clk 00:08:41]} {[%emt 00:00:02]} Kf6 {[%clk 00:19:18]}
{[%emt 00:00:02]} 61. Kh8 {[%clk 00:08:47]} {[%emt 00:00:04]} Kf7 {[%clk
00:19:25]} {[%emt 00:00:03]} 62. Kh7 {[%clk 00:08:52]} {[%emt 00:00:05]} Rh2
{[%emt 00:00:02]} 0-1